Cogmind - Beta 10.2 *** ADVENTURER MODE // 2021.04.25 @ 18:34:55 Player: soymachine Result: Destroyed by S-27 Virus with Autogun Performance ------------- Evolutions (3) 1500 Regions Visited (6) 1200 Robots Destroyed (91) 455 Value Destroyed (3194) 3194 Prototype IDs (4) 80 Alien Tech Used (0) 0 Bonus (1573) 1573 TOTAL SCORE: 8002 Bonus ------- High Alert Combat Kills 859 Follower Combat Kills 256 Entered Garrisons 200 Used RIF Installer 500 Friendly Fire -242 Cogmind --------- Core Integrity 0/700 Matter 77/300 Energy 100/100 System Corruption 10% Temperature Cool (24) Movement Core (50) Location -7/Factory Parts ------- > --- POWER (1) -------- (None) > --- PROPULSION (3) --- (None) > --- UTILITY (7) ------ (None) > --- WEAPON (2) ------- (None) > --- INVENTORY (4) ---- Carbon-fiber Leg Relay Coupler [Hunter] (23) Peak State ------------ > --- POWER ------------ Enhanced Nuclear Core > --- PROPULSION ------- Carbon-fiber Leg Carbon-fiber Leg Carbon-fiber Leg > --- UTILITY ---------- High-capacity Storage Unit Advanced Weight Redist. System Enhanced Optical Array Improved Sensor Array Advanced Signal Interpreter Advanced Targeting Computer Relay Coupler [NC] > --- WEAPON ----------- Heavy Ion Cannon Gauss Rifle > --- INVENTORY -------- Large Storage Unit Relay Coupler [Brawler] Relay Coupler [Duelist] Relay Coupler [Specialist] Relay Coupler [Hunter] Drone Bay Light Assault Rifle Grenade Launcher Rocket Launcher Remote Datajack Axe [Rating: 42] Favorites ----------- Power Ion Engine Engine Ion Engine Power Core Enhanced Nuclear Core Propulsion Light Treads Treads Light Treads Leg Carbon-fiber Leg Utility Signal Interpreter Device Sensor Array Storage High-capacity Storage Unit Processor Signal Interpreter Hackware Relay Coupler [NC] Weapon Advanced Beam Cannon Energy Gun EM Pulse Gun Energy Cannon Advanced Beam Cannon Ballistic Gun Heavy Assault Rifle Launcher Rocket Launcher Special Weapon Remote Datajack Special Melee Weapon Datajack Build | -11 -10 -9 -9 -9 -9 -7 ------- Run | Scr Mat Mat Sto Gar Rec Fac Slots Evolved 6 | . . 2 . . . 4 Power . | . . . . . . . Propulsion 1 | . . . . . . 1 Utility 5 | . . 2 . . . 3 Weapon . | . . . . . . . Parts Attached 60 | . 5 4 11 1 3 36 Power 4 | . . 1 2 . . 1 Engine 2 | . . . 2 . . . Core 2 | . . 1 . . . 1 Reactor . | . . . . . . . Propulsion 9 | . 2 . 1 1 . 5 Treads 5 | . 2 . 1 1 . 1 Leg 4 | . . . . . . 4 Wheel . | . . . . . . . Hover . | . . . . . . . Flight . | . . . . . . . Utility 16 | . 2 3 2 . 1 8 Device 6 | . 1 1 1 . 1 2 Storage 2 | . 1 . 1 . . . Processor 5 | . . 2 . . . 3 Hackware 3 | . . . . . . 3 Protection . | . . . . . . . Artifact . | . . . . . . . Weapon 31 | . 1 . 6 . 2 22 Energy Gun 5 | . 1 . 2 . . 2 Energy Cannon 7 | . . . 1 . 1 5 Ballistic Gun 9 | . . . 2 . . 7 Ballistic Cannon . | . . . . . . . Launcher 7 | . . . 1 . . 6 Special Weapon 2 | . . . . . . 2 Impact Weapon . | . . . . . . . Slashing Weapon . | . . . . . . . Piercing Weapon . | . . . . . . . Special Melee Weapon 1 | . . . . . 1 . Unidentified Prototypes 2 | . . . 1 . . 1 Parts Lost 27 | . . . 4 . . 23 Power 2 | . . . 1 . . 1 Propulsion 5 | . . . . . . 5 Utility 9 | . . . . . . 9 Weapon 11 | . . . 3 . . 8 Highest Loss Streak 15 | . . . 2 . . 15 Average Slot Usage (%) 92 | . 86 74 99 100 100 79 Engine 8 | . 14 6 9 11 11 . Core 1 | . . 4 1 . . 5 Treads 17 | . 11 22 22 22 22 7 Leg 3 | . 14 . . . . 9 Device 9 | . 2 4 11 11 11 8 Storage 10 | . 14 11 11 11 11 6 Processor 18 | . . 4 22 22 22 19 Hackware 1 | . . . . . . 5 Energy Gun 3 | . 25 22 4 . . . Energy Cannon 10 | . . . 6 11 19 5 Ballistic Gun 4 | . 2 . 8 11 . 5 Naked Turns 8 | . . . . . . 8 Heaviest Build 52 | 12 25 27 46 45 46 52 Greatest Support 54 | 20 40 40 40 40 40 54 Greatest Overweight (x) 10 | . 1 . 1 1 1 10 Average Overweight (x) . | . . . . 1 1 . Largest Inventory Capacity 12 | . 12 10 12 12 12 12 Average Capacity 11 | . 7 10 10 12 12 11 Most Carried 12 | . 7 10 10 12 12 12 Average Carried 10 | . 5 7 7 11 11 10 Final Capacity 12 | 6 10 10 12 12 12 4 Final Carried 12 | 6 6 10 9 12 12 2 Class Distribution -------------------- 32% | Bothacker-Skirmisher 24% | Mutant 16% | Commander-Skirmisher 9% | Bothacker-Mutant 7% | Commander-Assassin 4% | Commander-Mutant Dominant Class ---------------- Mutant | -10/Materials Mutant | -9/Materials Mutant | -9/Storage Commander-Skirmisher | -9/Garrison Bothacker-Skirmisher | -9/Recycling Bothacker-Skirmisher | -7/Factory Resources | -11 -10 -9 -9 -9 -9 -7 ----------- Run | Scr Mat Mat Sto Gar Rec Fac Matter Collected 1061 | 200 51 40 235 77 33 425 Remotely . | . . . . . . . Salvage Created 3542 | . 114 359 566 245 353 1905 Parts 189 | . 10 28 37 15 17 82 Haulers Intercepted 1 | . . . 1 . . . Recyclers Shooed 5 | . . . 1 . 1 3 Parts Field Recycled . | . . . . . . . Retrieved Matter . | . . . . . . . Parts Self-Destructed . | . . . . . . . Prevented . | . . . . . . . Kills | -11 -10 -9 -9 -9 -9 -7 ------- Run | Scr Mat Mat Sto Gar Rec Fac Combat Hostiles Destroyed 66 | . 2 7 11 7 7 32 Melee 1 | . . . . . 1 . Guns 25 | . 2 6 4 4 . 9 Cannons 19 | . . . 2 3 6 8 AOE 20 | . . . 5 . . 15 Classes Destroyed 14 | . 2 1 2 1 1 7 Worker 6 | . . . . . . 6 Builder 1 | . . . . . . 1 Hauler 1 | . . . 1 . . . Recycler 6 | . . . 1 . 2 3 Mechanic 3 | . . . . . . 3 Drone 7 | . . . . . 7 . Watcher 6 | . 1 1 1 . . 3 Swarmer 4 | . . . . 1 1 2 Grunt 36 | . 2 6 6 5 1 16 Brawler 4 | . . . . . . 4 Duelist 6 | . . . . . . 6 Protector 2 | . . . . . . 2 Sentry 8 | . . 1 5 1 . 1 Programmer 1 | . . . . . . 1 Best Kill Streak 15 | . 2 3 5 3 2 15 Combat Bots Only 10 | . 2 2 3 3 2 10 Max Kills in Single Turn 5 | . 1 1 2 1 2 5 Gunslinging . | . . . . . . . Exploded 4 | . . . 2 . . 4 Melee 1 | . . . . . 1 . Uniques/NPCs Destroyed . | . . . . . . . Combat | -11 -10 -9 -9 -9 -9 -7 -------- Run | Scr Mat Mat Sto Gar Rec Fac Damage Taken 3305 | . 47 199 485 91 27 2456 Core 862 | . 9 55 57 19 14 708 Absorbed by Shields . | . . . . . . . Core Remaining (%) 86 | 100 96 . . . 63 . Volleys Fired 184 | . 4 25 34 17 21 83 Largest 2 | . 2 2 2 2 2 2 Hottest 136 | . 80 80 96 91 136 128 Shots Fired 339 | . 8 50 66 34 35 146 Gun 197 | . 8 50 47 17 . 75 Cannon 113 | . . . 10 17 35 51 Launcher 26 | . . . 9 . . 17 Special 3 | . . . . . . 3 Kinetic 114 | . 1 . 32 17 . 64 Thermal 129 | . . . 15 17 35 62 Explosive 26 | . . . 9 . . 17 Electromagnetic 67 | . 7 50 10 . . . Robot Hit Streak 50 | . 6 19 24 15 4 50 Robot Miss Streak 5 | . . 1 2 2 5 2 Penetration Max 1 | . . . . . . 1 Secondary Targets . | . . . . . . . Shots Hit Robots 291 | . 6 41 50 16 61 117 Core Hits 178 | . 4 15 26 8 12 113 Critical Hits 9 | . . . 1 2 2 4 Critical Kills 3 | . . . 1 . 1 1 Critical Parts Destroyed 6 | . . . . 2 1 3 Melee Attacks 47 | . . . . . 47 . Impact . | . . . . . . . Slashing . | . . . . . . . Piercing . | . . . . . . . Sneak Attacks 39 | . . . . . 39 . Combat Hostiles . | . . . . . . . Follow-up Attacks . | . . . . . . . Damage Inflicted 6799 | . 88 609 810 301 374 4617 Guns 2196 | . 87 515 423 97 . 1074 Cannons 1796 | . . . 143 204 370 1079 Explosions 2781 | . . 94 237 . . 2450 Melee . | . . . . . . . Ramming 26 | . 1 . 7 . 4 14 Kinetic 1234 | . . . 266 97 . 871 Thermal 2165 | . . 94 215 204 370 1282 Explosive 2687 | . . . 237 . . 2450 Electromagnetic 687 | . 87 515 85 . . . Impact . | . . . . . . . Slashing . | . . . . . . . Piercing . | . . . . . . . Highest Corruption 10 | . . . . . . 10 Average Corruption 7 | . . . . . . 7 Corruption Purged . | . . . . . . . Effects 14 | . . . . . . 14 Heat Flow Errors 1 | . . . . . . 1 Energy Discharges 1 | . . . . . . 1 Data Loss (minor) 2 | . . . . . . 2 Data Loss (major) 1 | . . . . . . 1 Misfires 1 | . . . . . . 1 Misdirections 6 | . . . . . . 6 Targeting Errors 2 | . . . . . . 2 Overload Shots . | . . . . . . . Overflow Damage 90 | . . . . . . 90 Projectiles 9 | . . . . . . 9 Explosions 81 | . . . . . . 81 Melee . | . . . . . . . Knockbacks . | . . . . . . . Impact . | . . . . . . . Kinetic . | . . . . . . . Secondary . | . . . . . . . Self-Inflicted Damage 46 | . . 28 18 . . . Shots 2 | . . 1 1 . . . Rammed 3 | . 1 . 2 . . . Targets Rammed 6 | . 1 . 2 . 2 1 Kicked . | . . . . . . . Crushed 3 | . . . . . 2 1 Highest Temperature 198 | . 72 60 . 63 198 198 Average Temperature 45 | . 36 23 . 22 55 53 Received Heat Transfer 1209 | . 33 114 201 45 9 807 Siege Activations . | . . . . . . . Robots Corrupted 1 | . . 1 . . . . Combat Hostiles 1 | . . 1 . . . . Parts Fried 2 | . . 2 . . . . Impact Corruptions . | . . . . . . . Robots Melted . | . . . . . . . Combat Hostiles . | . . . . . . . Parts Melted 6 | . . . . 2 2 2 Heat Transferred 3593 | . . 100 444 311 666 2072 Parts Sabotaged . | . . . . . . . Parts Stolen . | . . . . . . . Parts Stripped . | . . . . . . . Power Chain Reactions 2 | . . 2 . . . . Missiles Intercepted . | . . . . . . . Alert | -11 -10 -9 -9 -9 -9 -7 ------- Run | Scr Mat Mat Sto Gar Rec Fac Peak Influence 1329 | . 72 287 451 681 350 1329 Initial 901 | . . 25 103 198 257 901 Average 432 | . 27 148 271 505 183 1023 Maximum Alert Level 4 | . . 1 2 2 1 4 Low Security (%) 36 | . 100 59 26 5 61 . Level 1 26 | . . 40 59 23 38 . Level 2 12 | . . . 14 71 . . Level 3 17 | . . . . . . 70 Level 4 7 | . . . . . . 29 Level 5 . | . . . . . . . High Security . | . . . . . . . Max Security . | . . . . . . . Squads Dispatched 19 | . 1 3 2 . . 13 Investigation 3 | . 1 1 . . . 1 Extermination 2 | . . . . . . 2 Reinforcement 6 | . . 2 2 . . 2 Assault 6 | . . . . . . 6 Garrison 2 | . . . . . . 2 Intercept . | . . . . . . . Construction Impeded 1 | . . . . . . 1 Haulers Reinforced . | . . . . . . . Stealth | -11 -10 -9 -9 -9 -9 -7 --------- Run | Scr Mat Mat Sto Gar Rec Fac Distress Signals 3 | . . . 3 . . . Communications Jammed . | . . . . . . . Distress Signals . | . . . . . . . Times Spotted 166 | . 7 14 22 16 41 66 Peak Tracking Total 11 | . 2 3 5 3 4 11 Tactical Retreats 9 | . . 3 1 . . 5 Traps | -11 -10 -9 -9 -9 -9 -7 ------- Run | Scr Mat Mat Sto Gar Rec Fac Traps Triggered 6 | . 1 . 1 3 . 1 Indirectly . | . . . . . . . Trap Hack Attempts . | . . . . . . . Triggered . | . . . . . . . Disarmed . | . . . . . . . Reprogrammed . | . . . . . . . Reused . | . . . . . . . Traps Extracted . | . . . . . . . Installed . | . . . . . . . Triggered 1 | . . 1 . . . . Machines | -11 -10 -9 -9 -9 -9 -7 ---------- Run | Scr Mat Mat Sto Gar Rec Fac Machines Disabled 8 | . . . 1 2 2 3 Max in Single Turn 2 | . . . 1 1 1 2 Garrison Relay 2 | . . . . 2 . . Machines Sabotaged . | . . . . . . . Garrisons Compromised . | . . . . . . . Overloaded Fab Kills . | . . . . . . . Fab Network Shutdowns . | . . . . . . . Hacking | -11 -10 -9 -9 -9 -9 -7 --------- Run | Scr Mat Mat Sto Gar Rec Fac Machines Accessed 5 | . . . 4 . . 1 Terminals 3 | . . . 3 . . . Fabricators 1 | . . . . . . 1 Repair Stations . | . . . . . . . Recycling Units . | . . . . . . . Scanalyzers . | . . . . . . . Garrison Access 1 | . . . 1 . . . Total Hacks 8 | . . . 6 . . 2 Successful 4 | . . . 4 . . . Failed 4 | . . . 2 . . 2 Catastrophic 2 | . . . 1 . . 1 Database Lockouts . | . . . . . . . Manual 1 | . . . 1 . . . Terminals 5 | . . . 5 . . . Fabricators 2 | . . . . . . 2 Repair Stations . | . . . . . . . Recycling Units . | . . . . . . . Scanalyzers . | . . . . . . . Garrison Access 1 | . . . 1 . . . Terminal Hacks 3 | . . . 3 . . . Prototype ID Bank 1 | . . . 1 . . . Open Door 1 | . . . 1 . . . Zone Layout 1 | . . . 1 . . . Fabricator Hacks . | . . . . . . . Repair Station Hacks . | . . . . . . . Recycling Unit Hacks . | . . . . . . . Scanalyzer . | . . . . . . . Garrison Access Hacks 1 | . . . 1 . . . Unlock Access 1 | . . . 1 . . . Unauthorized Hacks . | . . . . . . . Terminals . | . . . . . . . Fabricators . | . . . . . . . Repair Stations . | . . . . . . . Recycling Units . | . . . . . . . Scanalyzers . | . . . . . . . Garrison Access . | . . . . . . . Data Cores Recovered . | . . . . . . . Used . | . . . . . . . Hacking Detections 4 | . . . 3 . . 1 Full Trace Events 1 | . . . . . . 1 Feedback Events . | . . . . . . . Feedback Blocked . | . . . . . . . Robot Schematics Acquired . | . . . . . . . Robots Built . | . . . . . . . Matter . | . . . . . . . Time . | . . . . . . . Total Robot Build Rating . | . . . . . . . Part Schematics Acquired . | . . . . . . . Parts Built . | . . . . . . . Matter . | . . . . . . . Time . | . . . . . . . Total Part Build Rating . | . . . . . . . Parts Repaired . | . . . . . . . Time . | . . . . . . . Parts Recycled . | . . . . . . . Recycled Matter . | . . . . . . . Retrieved Matter . | . . . . . . . Retrieved Components . | . . . . . . . Parts Scanalyzed . | . . . . . . . Part Schematics Acquired . | . . . . . . . Parts Damaged . | . . . . . . . Bothacking | -11 -10 -9 -9 -9 -9 -7 ------------ Run | Scr Mat Mat Sto Gar Rec Fac Used RIF Installer 1 | . . . . 1 . . Robots Hacked 4 | . . . . . 2 2 Non-combat 4 | . . . . . 2 2 Combat . | . . . . . . . Robot Hacks Applied 4 | . . . . . 2 2 find_recycling 1 | . . . . . 1 . ignore_parts 1 | . . . . . 1 . link_fov 1 | . . . . . . 1 formatsys_low 1 | . . . . . . 1 Relay Couplers Released 7 | . . . . 7 . . Machine Destruction 7 | . . . . 7 . . Attached 3 | . . . . . . 3 Robots Rewired 8 | . . . . . 8 . Allies Hacked . | . . . . . . . Hacks Repelled . | . . . . . . . Allies | -11 -10 -9 -9 -9 -9 -7 -------- Run | Scr Mat Mat Sto Gar Rec Fac Total Allies 19 | . . . 10 . 8 1 Largest Group 11 | . . . 10 10 11 4 Highest-Rated Group 103 | . . . 88 88 103 43 Highest-Rated Ally 16 | . . . 16 16 16 15 Total Orders 7 | . . . . . 6 1 GUARD 7 | . . . . . 6 1 Ally Attacks 431 | . . . 14 50 361 6 Total Damage 2717 | . . . 117 498 2050 52 Kills 73 | . . . 2 9 61 1 Allies Corrupted . | . . . . . . . Allies Melted . | . . . . . . . Intel | -11 -10 -9 -9 -9 -9 -7 ------- Run | Scr Mat Mat Sto Gar Rec Fac Robot Analysis Total . | . . . . . . . Derelict Logs Recovered . | . . . . . . . Drone Launches . | . . . . . . . Drone Recoveries . | . . . . . . . Exploration | -11 -10 -9 -9 -9 -9 -7 ------------- Run | Scr Mat Mat Sto Gar Rec Fac Turns Passed 4802 | . 347 317 635 693 1642 1168 Spaces Moved 2266 | 1 209 132 269 345 668 642 Core 147 | . . . . . . 147 Treads 1749 | . 88 132 269 345 668 247 Legs 370 | 1 121 . . . . 248 Wheels . | . . . . . . . Hover . | . . . . . . . Flight . | . . . . . . . Fastest Speed 50 | 120 120 160 160 180 180 50 Average Speed 158 | 120 139 160 167 180 180 126 Slowest Speed 550 | 120 180 160 180 180 180 550 Overloaded Moves . | . . . . . . . Propulsion Burnouts . | . . . . . . . Robots Hopped . | . . . . . . . Cave-ins Triggered . | . . . . . . . Exploration Rate (%) 40 | 2 41 20 54 46 97 21 Regions Visited 6 Branch Regions 2 Pre-discovered Areas . | . . . . . . . Known Exits Taken 3 | . . 1 1 . 1 . Unknown Exits Taken 2 | 1 1 . . . . . Scrap Searched . | . . . . . . . Spaces Dug . | . . . . . . . Terrain Destroyed 101 | . . 4 41 . . 56 Melee . | . . . . . . . Projectile 1 | . . . . . . 1 AOE 100 | . . 4 41 . . 55 Terrain Rammed . | . . . . . . . Walls Destroyed . | . . . . . . . Machines Disabled . | . . . . . . . Actions | -11 -10 -9 -9 -9 -9 -7 --------- Run | Scr Mat Mat Sto Gar Rec Fac Total 3091 | . 259 188 387 384 1024 849 Wait 461 | . 30 19 62 7 281 62 Move 2261 | . 208 131 269 344 667 642 Hop . | . . . . . . . Pick Up 41 | . 5 8 6 6 1 15 Fast Attach 7 | . 1 . . . . 6 Attach 25 | . 2 3 5 . . 15 Detach . | . . . . . . . Swap 28 | . 2 1 6 1 3 15 Drop 24 | . 6 1 3 3 2 9 Fire 184 | . 4 25 34 17 21 83 Melee 47 | . . . . . 47 . Ram 1 | . . . . . . 1 Kick 1 | . 1 . . . . . Crush 5 | . . . 2 . 2 1 Escape Stasis 6 | . . . . 6 . . Rewire . | . . . . . . . Trap . | . . . . . . . Miscellaneous . | . . . . . . . Route ------- -11/Scrapyard -10/Materials -9/Materials -9/Storage (discovered 2 exits: [*Mat] / Gar) -9/Garrison (discovered 2 exits: *Rec x2) -9/Recycling -7/Factory (discovered 1 exit: [*Fac]) History --------- Turn | Location | Event 1 | -11/Scrapyard | Discovered new exit (range 0) 1 | -11/Scrapyard | Entered Materials 310 | -10/Materials | Build established: Mutant 335 | -10/Materials | Discovered new exit (range 5) 348 | -10/Materials | Entered another Materials area 348 | -9/Materials | Evolved 2 slots: Utility x2 566 | -9/Materials | Discovered new exit (range 17) 653 | -9/Materials | Identified exit to Storage 665 | -9/Materials | Entered Storage 1065 | -9/Storage | Assisted by bots powering up and referring to "LRC-V3" 1258 | -9/Storage | Discovered new exit (range 9) 1300 | -9/Storage | Identified exit to Garrison 1300 | -9/Storage | Entered Garrison 1300 | -9/Garrison | Accompanied by 10 allies 1358 | -9/Garrison | Triggered checkpoint 1414 | -9/Garrison | Garrison Relay disabled 1576 | -9/Garrison | Triggered checkpoint 1580 | -9/Garrison | Build established: Commander-Skirmisher 1588 | -9/Garrison | Triggered checkpoint 1670 | -9/Garrison | Triggered checkpoint 1695 | -9/Garrison | Garrison Relay disabled 1757 | -9/Garrison | Discovered new exit (range 11) 1773 | -9/Garrison | Identified exit to Recycling 1842 | -9/Garrison | Triggered checkpoint 1947 | -9/Garrison | Discovered exit to Recycling (range 14) 1979 | -9/Garrison | Installed Relay Interface Framework 1993 | -9/Garrison | Entered Recycling 1993 | -9/Recycling | Accompanied by 3 allies 2013 | -9/Recycling | Spotter reported a threat 2040 | -9/Recycling | Spotter reported a threat 2074 | -9/Recycling | Spotter reported a threat 2082 | -9/Recycling | Spotter reported a threat 2089 | -9/Recycling | Spotter reported a threat 2093 | -9/Recycling | Spotter reported a threat 2121 | -9/Recycling | Spotter reported a threat 2121 | -9/Recycling | Spotter reported a threat 2124 | -9/Recycling | Spotter reported a threat 2146 | -9/Recycling | Spotter reported a threat 2152 | -9/Recycling | Spotter reported a threat 2164 | -9/Recycling | Spotter reported a threat 2174 | -9/Recycling | Spotter reported a threat 2202 | -9/Recycling | Spotter reported a threat 2204 | -9/Recycling | Spotter reported a threat 2234 | -9/Recycling | Spotter reported a threat 2237 | -9/Recycling | Spotter reported a threat 2249 | -9/Recycling | Spotter reported a threat 2257 | -9/Recycling | Spotter reported a threat 2287 | -9/Recycling | Spotter reported a threat 2300 | -9/Recycling | Spotter reported a threat 2300 | -9/Recycling | Spotter reported a threat 2309 | -9/Recycling | Spotter reported a threat 2326 | -9/Recycling | Build established: Commander-Assassin 2340 | -9/Recycling | Spotter reported a threat 2350 | -9/Recycling | Spotter reported a threat 2350 | -9/Recycling | Spotter reported a threat 2364 | -9/Recycling | Discovered new exit (range 7) 2379 | -9/Recycling | Identified exit to Factory 2398 | -9/Recycling | Spotter reported a threat 2398 | -9/Recycling | Spotter reported a threat 2409 | -9/Recycling | Spotter reported a threat 2433 | -9/Recycling | Spotter reported a threat 2453 | -9/Recycling | Spotter reported a threat 2510 | -9/Recycling | Spotter reported a threat 2510 | -9/Recycling | Spotter reported a threat 2510 | -9/Recycling | Spotter reported a threat 2511 | -9/Recycling | Spotter reported a threat 2563 | -9/Recycling | Spotter reported a threat 2563 | -9/Recycling | Spotter reported a threat 2564 | -9/Recycling | Spotter reported a threat 2566 | -9/Recycling | Spotter reported a threat 2627 | -9/Recycling | Spotter reported a threat 2629 | -9/Recycling | Spotter reported a threat 2633 | -9/Recycling | Spotter reported a threat 2674 | -9/Recycling | Spotter reported a threat 2682 | -9/Recycling | Spotter reported a threat 2686 | -9/Recycling | Spotter reported a threat 2708 | -9/Recycling | Spotter reported a threat 2708 | -9/Recycling | Spotter reported a threat 2774 | -9/Recycling | Spotter reported a threat 2782 | -9/Recycling | Spotter reported a threat 2782 | -9/Recycling | Spotter reported a threat 2827 | -9/Recycling | Spotter reported a threat 2830 | -9/Recycling | Spotter reported a threat 2835 | -9/Recycling | Spotter reported a threat 2880 | -9/Recycling | Spotter reported a threat 2881 | -9/Recycling | Spotter reported a threat 2883 | -9/Recycling | Spotter reported a threat 2888 | -9/Recycling | Spotter reported a threat 2931 | -9/Recycling | Spotter reported a threat 2931 | -9/Recycling | Spotter reported a threat 2931 | -9/Recycling | Spotter reported a threat 2958 | -9/Recycling | Build established: Bothacker-Skirmisher 2983 | -9/Recycling | Spotter reported a threat 2984 | -9/Recycling | Spotter reported a threat 2990 | -9/Recycling | Spotter reported a threat 3059 | -9/Recycling | Spotter reported a threat 3104 | -9/Recycling | Spotter reported a threat 3126 | -9/Recycling | Spotter reported a threat 3231 | -9/Recycling | Spotter reported a threat 3239 | -9/Recycling | Spotter reported a threat 3260 | -9/Recycling | Spotter reported a threat 3264 | -9/Recycling | Spotter reported a threat 3287 | -9/Recycling | Spotter reported a threat 3297 | -9/Recycling | Spotter reported a threat 3333 | -9/Recycling | Spotter reported a threat 3333 | -9/Recycling | Spotter reported a threat 3336 | -9/Recycling | Spotter reported a threat 3338 | -9/Recycling | Spotter reported a threat 3371 | -9/Recycling | Spotter reported a threat 3391 | -9/Recycling | Spotter reported a threat 3394 | -9/Recycling | Spotter reported a threat 3400 | -9/Recycling | Spotter reported a threat 3422 | -9/Recycling | Spotter reported a threat 3422 | -9/Recycling | Spotter reported a threat 3422 | -9/Recycling | Spotter reported a threat 3446 | -9/Recycling | Spotter reported a threat 3469 | -9/Recycling | Spotter reported a threat 3469 | -9/Recycling | Spotter reported a threat 3469 | -9/Recycling | Spotter reported a threat 3499 | -9/Recycling | Spotter reported a threat 3520 | -9/Recycling | Spotter reported a threat 3520 | -9/Recycling | Spotter reported a threat 3520 | -9/Recycling | Spotter reported a threat 3522 | -9/Recycling | Spotter reported a threat 3571 | -9/Recycling | Spotter reported a threat 3571 | -9/Recycling | Spotter reported a threat 3571 | -9/Recycling | Spotter reported a threat 3573 | -9/Recycling | Spotter reported a threat 3635 | -9/Recycling | Entered Factory 3635 | -7/Factory | Accompanied by 4 allies 3635 | -7/Factory | Evolved 4 slots: Propulsion x1, Utility x3 4035 | -7/Factory | First assault squad dispatched 4311 | -7/Factory | Lost 3 parts (1n2w) 4400 | -7/Factory | Build established: Bothacker-Mutant 4478 | -7/Factory | Destroyed 10 combat bots 4630 | -7/Factory | Garrison activated, responded to threat 4691 | -7/Factory | Core integrity fell below 50% 4696 | -7/Factory | System corruption reached 10% 4733 | -7/Factory | Lost 15 parts (1p3n7u4w) 4742 | -7/Factory | Garrison activated, responded to threat 4788 | -7/Factory | Discovered new exit (range 16) 4797 | -7/Factory | Core integrity fell below 20% 4803 | -7/Factory | Destroyed by S-27 Virus with Autogun Last Messages --------------- 04733_ U-05 Engineer lays Concrete. 04734_ System corrupted: Component data lost. 04734_ U-05 Engineer lays Concrete. 04737_ Acquired 14 matter. 04738_ U-05 Engineer lays Concrete. 04742_ R-06 Scavenger calls for garrison support. 04742_ ALERT: Activating Garrison Access F002. 04743_ U-05 Engineer lays Concrete. 04747_ Acquired 19 matter. 04748_ U-05 Engineer lays Concrete. 04751_ System corrupted: Lgt. Assault Rifle targeting data glitched. 04754_ R-06 Scavenger destroyed. 04755_ System corrupted: FCS attempts to trigger Lgt. Assault Rifle. 04755_ System corrupted: Lgt. Assault Rifle misfires. 04772_ K-01 Serf cleans the Pressure Siphon. 04781_ System corrupted: Substantial component data lost. 04788_ EXIT=FOUND 04794_ Lgt. Assault Rifle destroyed. 04795_ Relay Coupler [Specialist] destroyed. 04800_ System corrupted: Heat flow error (+120). Map ----- +----------------------------------------------------+ | | | | | | | | | ???????????????????????????? | | ???????????????????????????? | | ???????????????????????????? | | ???????????????????????????? | | ????#??????????????????????? | | ???? ??????????????????????? | | ???? ??????????????????????? | | ???? ??????????????????????? | | ???? ??????????????????????? | | ???? ??????????????????????? | | ???? ??????????????????????? | | ???# #?????????????????????? | | ???# #?????????????????????? | | ???# #?????????????????????? | | ??## ##????????????????????? | | ??# #????????????????????? | | ???